[Event "Turkish Women-ch Arzum 2022"]
[Site "Ayvalik"]
[Date "2022.03.08"]
[Round "5.26"]
[White "Guleryuz, Zeynep"]
[Black "Gonultas, Bakriya Anastasiya"]
[Result "0-1"]
[ECO "C54"]
[WhiteElo "1186"]
[BlackElo "1232"]
[Annotator "NA RC"]
[PlyCount "102"]
[EventDate "2022.03.04"]
[EventType "swiss"]
[EventCountry "TUR"]
[SourceTitle "playchess.com"]
[Source "ChessBase"]
[SourceQuality "1"]
[TimeControl "5400+30"]

1. e4 {[%emt 0:01:00]} e5 {[%emt 0:01:00]} 2. Nf3 {[%emt 0:00:30]} Nc6 {[%emt 0:00:30]} 3. Bc4 {[%emt 0:00:00]} Nf6 {[%emt 0:00:00]} 4. d3 {[%emt 0:00:00]} Bc5 {[%emt 0:00:00]} 5. c3 {[%emt 0:03:30]} O-O {[%emt 0:00:30]} 6. O-O {[%emt 0:00:00]} a6 {[%emt 0:00:30]} 7. Bb3 {[%emt 0:06:00]} d6 {[%emt 0:00:30]} 8. h3 {[%emt 0:00:30]} Ne7 {[%emt 0:00:00]} 9. Re1 {[%emt 0:00:30]} Ng6 {[%emt 0:00:00]} 10. Nbd2 {[%emt 0:02:30]} Nh5 {[%emt 0:00:00]} 11. d4 {[%emt 0:05:30]} exd4 {[%emt 0:00:00]} 12. cxd4 {[%emt 0:01:30]} Bb4 {[%emt 0:00:30]} 13. a3 {[%emt 0:00:30]} Ba5 {[%emt 0:00:30]} 14. Bc2 {[%emt 0:01:30]} Nhf4 {[%emt 0:00:30]} 15. b4 {[%emt 0:02:30]} Bb6 {[%emt 0:00:00]} 16. Nf1 {[%emt 0:07:30]} h6 {[%emt 0:15:00]} 17. Ng3 {[%emt 0:06:30]} Re8 {[%emt 0:03:30]} 18. Bb2 {[%emt 0:09:30]} Nh4 {[%emt 0:05:30]} 19. Nf5 {[%emt 0:17:30]} Nhxg2 {[%emt 0:01:30]} 20. Bc1 {[%emt 0:10:30]} Bxf5 {[%emt 0:08:30]} 21. Bxf4 {[%emt 0:05:21]} Bxh3 {[%emt 0:00:30]} 22. Bg3 {[%emt 0:04:56]} Nxe1 {[%emt 0:00:30]} 23. Nxe1 {[%emt 0:00:17]} d5 {[%emt 0:00:30]} 24. e5 {[%emt 0:02:28]} Qg5 {[%emt 0:01:30]} 25. Qd3 {[%emt 0:01:15]} g6 {[%emt 0:00:30]} 26. f4 {[%emt 0:00:30]} Qg4 {[%emt 0:00:30]} 27. Bd1 {[%emt 0:01:01]} Qf5 {[%emt 0:00:30]} 28. Rc1 {[%emt 0:01:39]} Qe6 {[%emt 0:00:30]} 29. Bf2 {[%emt 0:00:44]} a5 {[%emt 0:00:30]} 30. Kh2 {[%emt 0:01:31]} Bf5 {[%emt 0:00:30]} 31. Qg3 {[%emt 0:01:17]} axb4 {[%emt 0:00:00]} 32. axb4 {[%emt 0:00:00]} Ra2 {[%emt 0:01:00]} 33. Qh4 {[%emt 0:01:10]} Bxd4 {[%emt 0:02:30]} 34. Qxh6 {[%emt 0:01:04]} Rxf2+ {[%emt 0:00:30]} 35. Kg3 {[%emt 0:00:24]} Rf1 {[%emt 0:02:30]} 36. Nf3 {[%emt 0:01:04]} Bb6 {[%emt 0:04:30]} 37. Ng5 {[%emt 0:02:45]} Rg1+ {[%emt 0:00:30]} 38. Kh2 {[%emt 0:00:36]} Rxg5 {[%emt 0:00:00]} 39. Qxg5 {[%emt 0:00:56]} Be4 {[%emt 0:00:00]} 40. Qh6 {[%emt 0:01:07]} Qf5 {[%emt 0:00:30]} 41. Rc3 {[%emt 0:00:55]} Ra8 {[%emt 0:00:30]} 42. Bb3 {[%emt 0:00:36]} Qh5+ {[%emt 0:02:30]} 43. Qxh5 {[%emt 0:00:13]} gxh5 {[%emt 0:00:30]} 44. Rc1 {[%emt 0:00:31]} Ra3 {[%emt 0:00:00]} 45. Bd1 {[%emt 0:00:07]} h4 {[%emt 0:00:00]} 46. Bg4 {[%emt 0:00:39]} f5 {[%emt 0:00:30]} 47. Bh5 {[%emt 0:00:34]} Rb3 {[%emt 0:04:30]} 48. e6 {[%emt 0:00:30]} Kf8 {[%emt 0:00:00]} 49. Ra1 {[%emt 0:00:09]} Ke7 {[%emt 0:00:00]} 50. Bf7 {[%emt 0:00:56]} Be3 {[%emt 0:00:30]} 51. Kh3 {[%emt 0:00:43]} Bd4+ {[%emt 0:00:30]} 0-1

[Event "Turkish Women-ch Arzum 2022"]
[Site "Ayvalik"]
[Date "2022.03.08"]
[Round "5.27"]
[White "Bodur, Ilke Lal"]
[Black "Karatiken, Beray"]
[Result "0-1"]
[ECO "B22"]
[WhiteElo "1151"]
[BlackElo "1380"]
[Annotator "NA RC"]
[PlyCount "96"]
[EventDate "2022.03.04"]
[EventType "swiss"]
[EventCountry "TUR"]
[SourceTitle "playchess.com"]
[Source "ChessBase"]
[SourceQuality "1"]
[TimeControl "5400+30"]

1. e4 {[%emt 0:01:00]} c5 {[%emt 0:01:00]} 2. c3 {[%emt 0:00:00]} e6 {[%emt 0:00:30]} 3. Nf3 {[%emt 0:00:00]} Nc6 {[%emt 0:00:30]} 4. d4 {[%emt 0:00:30]} d5 {[%emt 0:01:30]} 5. exd5 {[%emt 0:00:30]} exd5 {[%emt 0:00:00]} 6. Be2 {[%emt 0:01:30]} Nf6 {[%emt 0:01:00]} 7. O-O {[%emt 0:01:30]} Be7 {[%emt 0:01:30]} 8. Be3 {[%emt 0:03:30]} cxd4 {[%emt 0:02:30]} 9. cxd4 {[%emt 0:03:30]} O-O {[%emt 0:01:30]} 10. Nc3 {[%emt 0:05:30]} Bf5 {[%emt 0:03:30]} 11. a3 {[%emt 0:03:30]} Rc8 {[%emt 0:03:30]} 12. Rc1 {[%emt 0:04:30]} Ne4 {[%emt 0:05:30]} 13. Nxe4 {[%emt 0:06:30]} dxe4 {[%emt 0:00:30]} 14. Ne5 {[%emt 0:00:30]} Nxe5 {[%emt 0:02:30]} 15. dxe5 {[%emt 0:00:00]} b6 {[%emt 0:01:30]} 16. Qxd8 {[%emt 0:01:00]} Rfxd8 {[%emt 0:02:30]} 17. h3 {[%emt 0:01:30]} Bc5 {[%emt 0:05:30]} 18. Bxc5 {[%emt 0:03:30]} Rxc5 {[%emt 0:01:30]} 19. Rxc5 {[%emt 0:00:30]} bxc5 {[%emt 0:00:30]} 20. Rd1 {[%emt 0:00:30]} Rxd1+ {[%emt 0:01:30]} 21. Bxd1 {[%emt 0:00:00]} Kf8 {[%emt 0:00:00]} 22. Kf1 {[%emt 0:02:00]} Ke7 {[%emt 0:00:00]} 23. Bb3 {[%emt 0:00:30]} Be6 {[%emt 0:00:30]} 24. Bc2 {[%emt 0:01:30]} Bd5 {[%emt 0:02:30]} 25. Ke2 {[%emt 0:01:30]} Ke6 {[%emt 0:00:00]} 26. f4 {[%emt 0:00:30]} exf3+ {[%emt 0:00:00]} 27. gxf3 {[%emt 0:00:00]} Kxe5 {[%emt 0:00:30]} 28. Bxh7 {[%emt 0:00:00]} g6 {[%emt 0:00:30]} 29. h4 {[%emt 0:00:30]} Kf6 {[%emt 0:00:30]} 30. h5 {[%emt 0:00:30]} Kg7 {[%emt 0:00:30]} 31. hxg6 {[%emt 0:00:30]} fxg6 {[%emt 0:00:30]} 32. Bxg6 {[%emt 0:00:30]} Kxg6 {[%emt 0:00:00]} 33. Ke3 {[%emt 0:00:00]} a5 {[%emt 0:00:00]} 34. Kd3 {[%emt 0:00:00]} Bb3 {[%emt 0:01:30]} 35. a4 {[%emt 0:01:30]} Kf5 {[%emt 0:00:30]} 36. Kc3 {[%emt 0:01:30]} c4 {[%emt 0:00:30]} 37. Kd4 {[%emt 0:01:30]} Kf4 {[%emt 0:02:30]} 38. Kc5 {[%emt 0:00:30]} Kxf3 {[%emt 0:00:30]} 39. Kb5 {[%emt 0:01:30]} Ke2 {[%emt 0:00:30]} 40. Kxa5 {[%emt 0:00:30]} Kd2 {[%emt 0:00:00]} 41. Kb4 {[%emt 0:00:00]} Kc2 {[%emt 0:00:00]} 42. Ka3 {[%emt 0:00:00]} Bxa4 {[%emt 0:01:30]} 43. Ka2 {[%emt 0:00:00]} Be8 {[%emt 0:00:30]} 44. Ka1 {[%emt 0:00:00]} Bf7 {[%emt 0:00:30]} 45. b3 {[%emt 0:03:30]} c3 {[%emt 0:00:30]} 46. b4 {[%emt 0:01:30]} Kd2 {[%emt 0:00:30]} 47. b5 {[%emt 0:00:30]} c2 {[%emt 0:00:00]} 48. b6 {[%emt 0:00:30]} c1=Q# {[%emt 0:00:00]} 0-1

[Event "Turkish Women-ch Arzum 2022"]
[Site "Ayvalik"]
[Date "2022.03.08"]
[Round "5.28"]
[White "Engel, Ecrin Tuana"]
[Black "Buyuk, Elvin Esma"]
[Result "1/2-1/2"]
[ECO "C01"]
[WhiteElo "1250"]
[BlackElo "1326"]
[Annotator "NA RC"]
[PlyCount "57"]
[EventDate "2022.03.04"]
[EventType "swiss"]
[EventCountry "TUR"]
[SourceTitle "playchess.com"]
[Source "ChessBase"]
[SourceQuality "1"]
[TimeControl "5400+30"]

1. e4 {[%emt 0:01:00]} Nc6 {[%emt 0:01:00]} 2. Nf3 {[%emt 0:00:30]} e6 {[%emt 0:00:00]} 3. d4 {[%emt 0:00:00]} Nf6 {[%emt 0:01:00]} 4. e5 {[%emt 0:01:00]} Nd5 {[%emt 0:00:30]} 5. c4 {[%emt 0:01:30]} Nb6 {[%emt 0:01:30]} 6. Nc3 {[%emt 0:01:30]} d5 {[%emt 0:01:30]} 7. c5 {[%emt 0:11:30]} Nd7 {[%emt 0:00:30]} 8. Bb5 {[%emt 0:00:30]} Ne7 {[%emt 0:03:30]} 9. O-O {[%emt 0:05:30]} c6 {[%emt 0:03:30]} 10. Ba4 {[%emt 0:02:30]} h6 {[%emt 0:02:30]} 11. Ne1 {[%emt 0:06:30]} b5 {[%emt 0:05:30]} 12. Bc2 {[%emt 0:01:30]} g6 {[%emt 0:01:30]} 13. Bd3 {[%emt 0:04:30]} Bg7 {[%emt 0:03:30]} 14. Nc2 {[%emt 0:00:30]} a5 {[%emt 0:02:30]} 15. a3 {[%emt 0:01:30]} O-O {[%emt 0:03:30]} 16. Bd2 {[%emt 0:02:30]} Kh7 {[%emt 0:12:30]} 17. f4 {[%emt 0:12:30]} f5 {[%emt 0:06:30]} 18. Qf3 {[%emt 0:06:30]} Ba6 {[%emt 0:06:30]} 19. b4 {[%emt 0:01:30]} a4 {[%emt 0:00:30]} 20. Kh1 {[%emt 0:09:30]} Kg8 {[%emt 0:03:30]} 21. Rg1 {[%emt 0:08:30]} Kf7 {[%emt 0:01:30]} 22. g4 {[%emt 0:00:30]} Qc7 {[%emt 0:02:30]} 23. gxf5 {[%emt 0:00:47]} exf5 {[%emt 0:06:30]} 24. Ne3 {[%emt 0:02:40]} Ke8 {[%emt 0:04:30]} 25. Ng2 {[%emt 0:00:34]} Rg8 {[%emt 0:01:30]} 26. Nh4 {[%emt 0:00:51]} Nf8 {[%emt 0:00:30]} 27. Rg3 {[%emt 0:00:41]} Bc8 {[%emt 0:02:30]} 28. Rag1 {[%emt 0:01:18]} Be6 {[%emt 0:01:30]} 29. Qf2 {[%emt 0:02:13]} 1/2-1/2

[Event "Turkish Women-ch Arzum 2022"]
[Site "Ayvalik"]
[Date "2022.03.08"]
[Round "5.29"]
[White "Bursali, Ela"]
[Black "Aksoy, Duru"]
[Result "1-0"]
[ECO "B23"]
[WhiteElo "1353"]
[BlackElo "1223"]
[Annotator "NA RC"]
[PlyCount "117"]
[EventDate "2022.03.04"]
[EventType "swiss"]
[EventCountry "TUR"]
[SourceTitle "playchess.com"]
[Source "ChessBase"]
[SourceQuality "1"]
[TimeControl "5400+30"]

1. e4 {[%emt 0:01:00]} c5 {[%emt 0:01:00]} 2. Nc3 {[%emt 0:00:00]} d6 {[%emt 0:01:30]} 3. f4 {[%emt 0:00:00]} Nc6 {[%emt 0:01:30]} 4. Nf3 {[%emt 0:00:30]} g6 {[%emt 0:00:30]} 5. Bc4 {[%emt 0:00:30]} Bg7 {[%emt 0:01:30]} 6. O-O {[%emt 0:00:30]} Nf6 {[%emt 0:01:30]} 7. Qe1 {[%emt 0:02:30]} O-O {[%emt 0:00:30]} 8. d3 {[%emt 0:00:30]} Bg4 {[%emt 0:06:30]} 9. Ng5 {[%emt 0:05:30]} h6 {[%emt 0:02:30]} 10. Nxf7 {[%emt 0:00:30]} Rxf7 {[%emt 0:00:30]} 11. Bxf7+ {[%emt 0:00:00]} Kxf7 {[%emt 0:00:30]} 12. h3 {[%emt 0:04:00]} Bc8 {[%emt 0:01:30]} 13. Be3 {[%emt 0:06:30]} b6 {[%emt 0:04:30]} 14. Qh4 {[%emt 0:08:30]} Bb7 {[%emt 0:07:30]} 15. a3 {[%emt 0:06:30]} Qd7 {[%emt 0:05:30]} 16. f5 {[%emt 0:03:30]} g5 {[%emt 0:03:30]} 17. Qg3 {[%emt 0:02:30]} Rc8 {[%emt 0:03:30]} 18. Ne2 {[%emt 0:04:30]} Ne5 {[%emt 0:03:30]} 19. h4 {[%emt 0:09:30]} Nh5 {[%emt 0:05:30]} 20. Qe1 {[%emt 0:01:30]} g4 {[%emt 0:07:30]} 21. Nf4 {[%emt 0:02:30]} Nf6 {[%emt 0:02:30]} 22. Ne6 {[%emt 0:01:30]} d5 {[%emt 0:00:30]} 23. Bf4 {[%emt 0:01:30]} Nc6 {[%emt 0:03:30]} 24. e5 {[%emt 0:01:30]} Nh5 {[%emt 0:02:30]} 25. Nxc5 {[%emt 0:00:30]} Qe8 {[%emt 0:02:30]} 26. Nxb7 {[%emt 0:01:30]} Nxf4 {[%emt 0:01:30]} 27. Rxf4 {[%emt 0:00:00]} Rb8 {[%emt 0:00:30]} 28. Rxg4 {[%emt 0:01:00]} Rxb7 {[%emt 0:01:30]} 29. d4 {[%emt 0:00:30]} Qf8 {[%emt 0:03:30]} 30. Qg3 {[%emt 0:00:30]} h5 {[%emt 0:02:30]} 31. Rf4 {[%emt 0:01:30]} Nd8 {[%emt 0:02:30]} 32. Qg6+ {[%emt 0:01:30]} Kg8 {[%emt 0:00:30]} 33. Raf1 {[%emt 0:00:00]} Kh8 {[%emt 0:02:30]} 34. Qxh5+ {[%emt 0:00:00]} Kg8 {[%emt 0:00:00]} 35. Qg6 {[%emt 0:00:30]} Kh8 {[%emt 0:00:00]} 36. g4 {[%emt 0:00:30]} Nf7 {[%emt 0:00:30]} 37. Qh5+ {[%emt 0:00:30]} Kg8 {[%emt 0:00:30]} 38. g5 {[%emt 0:00:00]} Nh8 {[%emt 0:01:30]} 39. f6 {[%emt 0:00:00]} exf6 {[%emt 0:01:21]} 40. exf6 {[%emt 0:00:30]} Rf7 {[%emt 0:00:21]} 41. fxg7 {[%emt 0:01:30]} Qxg7 {[%emt 0:00:17]} 42. Rxf7 {[%emt 0:00:30]} Nxf7 {[%emt 0:00:13]} 43. Qxf7+ {[%emt 0:00:30]} Qxf7 {[%emt 0:00:30]} 44. Rxf7 {[%emt 0:00:30]} Kxf7 {[%emt 0:00:18]} 45. h5 {[%emt 0:00:00]} a5 {[%emt 0:00:30]} 46. a4 {[%emt 0:00:00]} Kg7 {[%emt 0:00:30]} 47. Kf2 {[%emt 0:00:00]} Kh7 {[%emt 0:00:00]} 48. Kf3 {[%emt 0:00:00]} Kg7 {[%emt 0:00:00]} 49. Kf4 {[%emt 0:00:30]} Kh7 {[%emt 0:00:30]} 50. Kf5 {[%emt 0:00:00]} Kg7 {[%emt 0:00:00]} 51. h6+ {[%emt 0:00:00]} Kh7 {[%emt 0:00:00]} 52. Kf6 {[%emt 0:00:00]} Kh8 {[%emt 0:00:30]} 53. g6 {[%emt 0:00:00]} Kg8 {[%emt 0:00:00]} 54. h7+ {[%emt 0:00:00]} Kh8 {[%emt 0:00:00]} 55. c3 {[%emt 0:00:00]} b5 {[%emt 0:00:30]} 56. axb5 {[%emt 0:00:00]} a4 {[%emt 0:00:00]} 57. b6 {[%emt 0:00:00]} a3 {[%emt 0:00:00]} 58. b7 {[%emt 0:00:30]} axb2 {[%emt 0:00:00]} 59. b8=Q# {[%emt 0:00:00]} 1-0

[Event "Turkish Women-ch Arzum 2022"]
[Site "Ayvalik"]
[Date "2022.03.08"]
[Round "5.31"]
[White "Ozturk, Busra"]
[Black "Kalyoncu, Beren"]
[Result "1-0"]
[ECO "B27"]
[WhiteElo "1100"]
[BlackElo "1228"]
[Annotator "NA RC"]
[PlyCount "73"]
[EventDate "2022.03.04"]
[EventType "swiss"]
[EventCountry "TUR"]
[SourceTitle "playchess.com"]
[Source "ChessBase"]
[SourceQuality "1"]
[TimeControl "5400+30"]

1. e4 {[%emt 0:02:00]} c5 {[%emt 0:01:00]} 2. Nf3 {[%emt 0:00:30]} g6 {[%emt 0:00:00]} 3. Bc4 {[%emt 0:01:30]} Bg7 {[%emt 0:01:00]} 4. O-O {[%emt 0:00:30]} d6 {[%emt 0:00:30]} 5. c3 {[%emt 0:00:30]} Nc6 {[%emt 0:00:30]} 6. a3 {[%emt 0:00:30]} e6 {[%emt 0:01:30]} 7. b4 {[%emt 0:02:30]} Nge7 {[%emt 0:01:30]} 8. d4 {[%emt 0:02:30]} d5 {[%emt 0:02:30]} 9. exd5 {[%emt 0:01:30]} exd5 {[%emt 0:00:30]} 10. Bb3 {[%emt 0:00:30]} cxd4 {[%emt 0:00:30]} 11. Nxd4 {[%emt 0:01:30]} Nxd4 {[%emt 0:00:30]} 12. cxd4 {[%emt 0:00:30]} O-O {[%emt 0:00:00]} 13. Nc3 {[%emt 0:00:30]} Be6 {[%emt 0:01:00]} 14. Re1 {[%emt 0:00:30]} Nf5 {[%emt 1:26:30]} 15. Ne2 {[%emt 1:22:30]} Rc8 {[%emt 0:00:30]} 16. Bb2 {[%emt 0:00:30]} Qd6 {[%emt 0:00:30]} 17. Qd3 {[%emt 0:00:30]} Rc7 {[%emt 0:00:30]} 18. Qf3 {[%emt 0:00:30]} Rd8 {[%emt 0:00:30]} 19. h3 {[%emt 0:00:00]} Qb6 {[%emt 0:00:00]} 20. Qf4 {[%emt 0:00:00]} Rdc8 {[%emt 0:00:00]} 21. Qf3 {[%emt 0:00:00]} Nxd4 {[%emt 0:00:00]} 22. Nxd4 {[%emt 0:00:00]} Bxd4 {[%emt 0:00:00]} 23. Bxd4 {[%emt 0:00:00]} Qxd4 {[%emt 0:00:00]} 24. Rad1 {[%emt 0:00:00]} Qc3 {[%emt 0:00:00]} 25. Re3 {[%emt 0:00:00]} Qc6 {[%emt 0:00:00]} 26. Bxd5 {[%emt 0:00:00]} Bxd5 {[%emt 0:00:00]} 27. Rxd5 {[%emt 0:00:00]} Qc2 {[%emt 0:00:00]} 28. Rde5 {[%emt 0:00:00]} Qc6 {[%emt 0:00:00]} 29. Qe2 {[%emt 0:00:00]} Qc1+ {[%emt 0:00:00]} 30. Kh2 {[%emt 0:00:00]} Rc3 {[%emt 0:00:00]} 31. Re8+ {[%emt 0:00:00]} Rxe8 {[%emt 0:00:00]} 32. Rxe8+ {[%emt 0:00:00]} Kg7 {[%emt 0:00:00]} 33. Qe5+ {[%emt 0:00:00]} Kh6 {[%emt 0:00:00]} 34. Re7 {[%emt 0:00:00]} f5 {[%emt 0:00:00]} 35. f4 {[%emt 0:00:00]} Rxh3+ {[%emt 0:00:00]} 36. Kxh3 {[%emt 0:00:00]} Qxa3+ {[%emt 0:00:00]} 37. g3 {[%emt 0:00:00]} 1-0

[Event "Turkish Women-ch Arzum 2022"]
[Site "Ayvalik"]
[Date "2022.03.08"]
[Round "5.32"]
[White "Senkal, Defne"]
[Black "Kum, Busra"]
[Result "1-0"]
[ECO "C42"]
[WhiteElo "1247"]
[BlackElo "1062"]
[Annotator "NA"]
[PlyCount "135"]
[EventDate "2022.03.04"]
[EventType "swiss"]
[EventCountry "TUR"]
[SourceTitle "playchess.com"]
[Source "ChessBase"]
[SourceQuality "1"]
[TimeControl "5400+30"]

1. e4 {[%emt 0:01:00]} e5 {[%emt 0:01:00]} 2. Nf3 {[%emt 0:00:30]} Nf6 {[%emt 0:00:00]} 3. Nxe5 {[%emt 0:00:30]} d6 {[%emt 0:00:00]} 4. Nf3 {[%emt 0:00:30]} Nxe4 {[%emt 0:00:30]} 5. Nc3 {[%emt 0:03:30]} Nxc3 {[%emt 0:01:30]} 6. dxc3 {[%emt 0:00:30]} Bg4 {[%emt 0:04:30]} 7. Be2 {[%emt 0:00:30]} Nc6 {[%emt 0:04:30]} 8. Be3 {[%emt 0:02:30]} Qd7 {[%emt 0:02:30]} 9. Qd2 {[%emt 0:01:30]} Be7 {[%emt 0:01:30]} 10. h3 {[%emt 0:01:30]} Bf5 {[%emt 0:04:30]} 11. Nd4 {[%emt 0:05:30]} Bg6 {[%emt 0:01:30]} 12. Bg4 {[%emt 0:04:30]} f5 {[%emt 0:01:30]} 13. Bf3 {[%emt 0:01:30]} Bf6 {[%emt 0:05:30]} 14. Nxc6 {[%emt 0:02:30]} bxc6 {[%emt 0:00:30]} 15. Qe2 {[%emt 0:00:30]} O-O {[%emt 0:01:30]} 16. O-O {[%emt 0:00:30]} Rfe8 {[%emt 0:12:30]} 17. Qc4+ {[%emt 0:05:30]} d5 {[%emt 0:00:30]} 18. Qa4 {[%emt 0:00:30]} Qd6 {[%emt 0:09:30]} 19. Rfe1 {[%emt 0:12:30]} a5 {[%emt 0:02:30]} 20. Rad1 {[%emt 0:12:30]} Reb8 {[%emt 0:03:30]} 21. Bf4 {[%emt 0:05:30]} Qc5 {[%emt 0:00:30]} 22. Be3 {[%emt 0:05:30]} Qd6 {[%emt 0:01:30]} 23. Bc1 {[%emt 0:00:30]} Be8 {[%emt 0:06:30]} 24. Rd3 {[%emt 0:09:30]} Kh8 {[%emt 0:07:30]} 25. b3 {[%emt 0:02:30]} c5 {[%emt 0:03:30]} 26. Qa3 {[%emt 0:00:30]} c6 {[%emt 0:01:30]} 27. Be3 {[%emt 0:01:30]} Be7 {[%emt 0:01:30]} 28. Qc1 {[%emt 0:00:34]} Qd8 {[%emt 0:03:04]} 29. c4 {[%emt 0:02:48]} d4 {[%emt 0:01:10]} 30. Bf4 {[%emt 0:01:19]} Bd6 {[%emt 0:03:38]} 31. c3 {[%emt 0:00:35]} Bxf4 {[%emt 0:05:46]} 32. Qxf4 {[%emt 0:00:16]} Qf6 {[%emt 0:00:55]} 33. cxd4 {[%emt 0:00:46]} cxd4 {[%emt 0:01:14]} 34. Rxd4 {[%emt 0:00:13]} g5 {[%emt 0:01:43]} 35. Qe5 {[%emt 0:00:47]} Qxe5 {[%emt 0:00:16]} 36. Rxe5 {[%emt 0:00:00]} a4 {[%emt 0:02:32]} 37. Rxf5 {[%emt 0:01:09]} h6 {[%emt 0:00:53]} 38. Rd6 {[%emt 0:03:55]} axb3 {[%emt 0:01:44]} 39. axb3 {[%emt 0:00:04]} Rxb3 {[%emt 0:01:46]} 40. Rff6 {[%emt 0:02:46]} Ra1+ {[%emt 0:01:26]} 41. Kh2 {[%emt 0:00:30]} Kg7 {[%emt 0:00:18]} 42. Bxc6 {[%emt 0:00:47]} Bxc6 {[%emt 0:00:54]} 43. Rxc6 {[%emt 0:00:30]} Rc3 {[%emt 0:00:00]} 44. Rxh6 {[%emt 0:00:33]} Rac1 {[%emt 0:00:28]} 45. Rhg6+ {[%emt 0:01:06]} Kf7 {[%emt 0:00:24]} 46. Rxg5 {[%emt 0:00:04]} Rxc4 {[%emt 0:00:50]} 47. Rxc4 {[%emt 0:00:30]} Rxc4 {[%emt 0:00:30]} 48. Rg4 {[%emt 0:00:00]} Rc3 {[%emt 0:00:00]} 49. h4 {[%emt 0:00:00]} Kf6 {[%emt 0:00:20]} 50. Rg3 {[%emt 0:00:08]} Rc2 {[%emt 0:00:30]} 51. f3 {[%emt 0:00:07]} Rc8 {[%emt 0:01:12]} 52. Rh3 {[%emt 0:00:09]} Kg6 {[%emt 0:00:29]} 53. h5+ {[%emt 0:00:14]} Kh6 {[%emt 0:00:27]} 54. g4 {[%emt 0:00:19]} Kh7 {[%emt 0:00:02]} 55. g5 {[%emt 0:00:38]} Rc5 {[%emt 0:00:29]} 56. Rg3 {[%emt 0:00:30]} Kh8 {[%emt 0:00:30]} 57. Kh3 {[%emt 0:00:30]} Rd5 {[%emt 0:00:30]} 58. Kh4 {[%emt 0:00:30]} Re5 {[%emt 0:00:30]} 59. h6 {[%emt 0:00:30]} Rd5 {[%emt 0:00:30]} 60. Rg4 {[%emt 0:00:30]} Rd1 {[%emt 0:00:30]} 61. Kh5 {[%emt 0:00:00]} Re1 {[%emt 0:01:12]} 62. g6 {[%emt 0:00:00]} Rh1+ {[%emt 0:02:16]} 63. Kg5 {[%emt 0:00:08]} Rh2 {[%emt 0:00:00]} 64. f4 {[%emt 0:00:57]} Rf2 {[%emt 0:00:40]} 65. Kf5 {[%emt 0:00:11]} Kg8 {[%emt 0:00:11]} 66. Kf6 {[%emt 0:00:35]} Rxf4+ {[%emt 0:01:01]} 67. Rxf4 {[%emt 0:00:06]} Kf8 {[%emt 0:00:33]} 68. h7 {[%emt 0:00:17]} 1-0

[Event "Turkish Women-ch Arzum 2022"]
[Site "Ayvalik"]
[Date "2022.03.09"]
[Round "6.11"]
[White "Can, Isil"]
[Black "Zengin, Ovgu"]
[Result "1-0"]
[ECO "B43"]
[WhiteElo "1875"]
[BlackElo "1475"]
[Annotator "NA RC"]
[PlyCount "70"]
[EventDate "2022.03.04"]
[EventType "swiss"]
[EventCountry "TUR"]
[SourceTitle "playchess.com"]
[Source "ChessBase"]
[SourceQuality "1"]
[TimeControl "5400+30"]

{[%evp 26,70,-38,-58,104,102,97,126,167,102,162,157,164,170,212,204,229,237,216,234,259,244,253,162,316,276,682,717,864,747,760,816,804,990,3760,2518,29983,29984,2128,29986,29986,29985,29988,29988,2919,1360,1345]} 1. e4 c5 2. Nf3 e6 3. d4 cxd4 4. Nxd4 a6 5. Nc3 Qc7 6. a3 Nf6 7. Be3 {7.f4 is the modern continuation.} b5 8. Bd3 Bb7 9. f3 {[%emt 0:04:00]} d5 {[%emt 0:08:00]} 10. exd5 {[%emt 0:02:30]} Nxd5 {[%emt 0:02:30]} 11. Nxd5 {[%emt 0:00:30]} Bxd5 {[%emt 0:01:30]} 12. O-O {[%emt 0:00:30]} Bd6 {[%emt 0:00:30]} 13. h3 {[%emt 0:00:30] [#]} Nd7 $146 {[%emt 0:02:30]} ({Predecessor:} 13... Nc6 14. Qd2 Nxd4 15. Bxd4 Bf4 16. Qf2 Bh2+ 17. Kh1 Bg3 18. Qd2 e5 19. Bf2 Bf4 {1-0 (58) Zheng,J (1583)-Ivan,A (1300) England 2019}) 14. Kh1 {[%emt 0:04:30]} (14. a4 $11) 14... Nf6 {[%emt 0:01:30] [#]} (14... Ne5 $15) 15. Bxb5+ $1 {[%emt 0:08:30]} Ke7 {[%emt 0:11:30]} 16. Bd3 {[%emt 0:04:30]} Nh5 {[%emt 0:04:30]} (16... Bc4 $16 {is a better defense.}) 17. Ne2 {[%emt 0:01:30]} ({Better is} 17. Re1) 17... Be5 {[%emt 0:08:30]} (17... Bc4 $16) 18. c4 {[%emt 0:06:30]} Bb7 {[%emt 0:04:30]} 19. Qc2 {[%emt 0:03:30]} Rhb8 {[%emt 0:05:30]} 20. Rab1 {[%emt 0:01:30]} ({But not} 20. Bxh7 $6 g6 $16) 20... Nf6 {[%emt 0:10:30]} 21. f4 {[%emt 0:15:30]} Qc6 {[%emt 0:01:30]} 22. Rg1 {[%emt 0:00:30]} Bc7 {[%emt 0:02:30]} 23. Nd4 {[%emt 0:00:30]} Qd7 {[%emt 0:01:30]} 24. Rgf1 {[%emt 0:02:30]} ({And not} 24. Bxh7 Rh8 25. Rgd1 (25. Qb3 $2 Rab8 $19) 25... Ke8 $11) 24... g6 {[%emt 0:09:30]} (24... h6 $142 25. Rbd1 Kf8) 25. Rbd1 {[%emt 0:09:30]} Qc8 $2 {[%emt 0:03:30]} (25... Rg8 26. Qf2 Kf8) 26. f5 {[%emt 0:04:30]} e5 {[%emt 0:03:30] [#]} 27. Bg5 $1 {[%emt 0:03:30]} exd4 {[%emt 0:07:10]} 28. Rde1+ {[%emt 0:01:30]} Kf8 {[%emt 0:01:11]} 29. Bxf6 {[%emt 0:02:30]} Qd7 {[%emt 0:01:35]} 30. Qd2 {[%emt 0:00:30]} Kg8 {[%emt 0:01:26]} 31. Qh6 {[%emt 0:01:30]} Bxg2+ {[%emt 0:00:47]} 32. Kg1 {[%emt 0:00:30]} Bh2+ {[%emt 0:00:59]} 33. Kxh2 {[%emt 0:00:00]} Qd6+ {[%emt 0:00:28]} 34. Be5 {[%emt 0:00:00]} Qf8 {[%emt 0:01:04]} 35. Qxf8+ {[%emt 0:00:30]} (35. Qg5 $142 Qe8 36. fxg6 fxg6 37. Qxg2 Ra7 38. Qd5+ Rf7 39. Rxf7 Qxf7 40. Bxb8) 35... Kxf8 $18 {[%emt 0:00:54]} 1-0